bitfinex/quotes_ETHUSD_20250616
["timestamp","ask_amount","ask_price","bid_price","bid_amount"]
[1750104725552,15.6239851,2648.3,2647.8,3.77671436]
[1750104726374,3.77543944,2648.7,2647.6,11.56583722]
[1750104726375,3.77549713,2648.7,2648.2,3.7760737]
[1750104726588,3.77558507,2648.6,2648.1,4.59642928]
[1750104726802,3.89365911,2648.6,2648.1,4.59642928]
[1750104727001,0.66807404,2648.6,2648.2,3.77610913]
[1750104727174,0.55,2648.6,2648.2,3.77610913]
[1750104727715,0.45705636,2649.0,2648.6,3.77557955]
[1750104728013,0.45705636,2649.0,2648.9,4.59535194]
[1750104728313,0.0866762,2649.0,2648.9,0.8202]
[1750104728488,0.0866762,2649.0,2648.6,3.77545927]
[1750104728684,0.0866762,2649.0,2648.7,11.94341173]
[1750104728880,0.0866762,2649.0,2648.8,3.77529126]
[1750104729086,0.0866762,2649.0,2648.9,6.419]
[1750104731374,0.0866762,2649.0,2648.9,6.418]
[1750104734910,0.0866762,2649.0,2648.9,6.417]
[1750104736993,0.0866762,2649.0,2648.7,3.7753569]
[1750104737201,0.0866762,2649.0,2648.8,6.417]
[1750104737426,0.0866762,2649.0,2648.7,3.7753569]
[1750104737630,3.77517638,2648.9,2648.8,6.417]
[1750104737806,10.0866762,2649.0,2648.8,6.417]
[1750104737807,13.86175706,2649.0,2648.8,6.417]
[1750104738006,15.20700577,2649.0,2648.8,6.417]
[1750104738316,1.43192491,2649.0,2648.8,6.417]
[1750104738722,0.0866762,2649.0,2648.8,6.417]
[1750104740315,0.0866762,2649.0,2648.8,10.1922642]
[1750104741156,0.0866762,2649.0,2648.8,6.417]
[1750104741357,0.0866762,2649.0,2648.8,10.19228849]
[1750104741850,0.0866762,2649.0,2648.8,6.417]
[1750104742654,0.0866762,2649.0,2648.9,6.415]
[1750104744162,0.0866762,2649.0,2648.4,7.62963533]
[1750104744163,3.77523482,2648.9,2648.5,3.77569524]
[1750104744453,13.86176276,2649.0,2648.7,1.746]
[1750104744750,15.62543961,2649.0,2648.7,1.746]
[1750104745854,11.85035305,2649.0,2648.7,1.746]
[1750104746334,15.62539391,2649.0,2648.7,1.746]
[1750104746963,0.55,2648.9,2648.7,1.746]
[1750104747255,4.32516429,2648.9,2648.5,3.77563598]
[1750104747434,10.55,2648.6,2648.4,0.00636091]
[1750104747628,4.3257221,2648.5,2648.4,0.00636091]
[1750104747829,14.3257221,2648.5,2648.4,0.00636091]
[1750104751838,44.3257221,2648.5,2648.4,0.00636091]
[1750104752034,48.14076864,2648.5,2648.4,0.00636091]
[1750104752649,18.14076864,2648.5,2648.4,0.00636091]
[1750104752848,10.55,2648.5,2648.4,0.00636091]
[1750104753227,10.0,2648.5,2648.4,4.56532558]
[1750104753629,0.0866762,2649.0,2648.6,3.77544916]
[1750104753931,0.0866762,2649.0,2648.7,10.18839255]
[1750104754150,0.0866762,2649.0,2648.8,3.77522377]
[1750104754360,0.0866762,2649.0,2648.7,14.03627442]
[1750104754869,0.0866762,2649.0,2648.9,4.59315194]
[1750104756530,0.0866762,2649.0,2648.9,15.43868834]
[1750104756753,0.0866762,2649.0,2648.9,15.40094053]
[1750104760174,0.0866762,2649.0,2648.9,16.52922061]
[1750104760338,0.0866762,2649.0,2648.9,15.40094053]
[1750104760537,0.0866762,2649.0,2648.9,16.90545728]
[1750104760837,0.0866762,2649.0,2648.9,15.40094053]
[1750104761336,0.0866762,2649.0,2648.9,23.31317561]
[1750104762770,0.0866762,2649.0,2648.9,21.80994053]
[1750104764169,0.0866762,2649.0,2648.9,22.93619611]
[1750104765396,0.0866762,2649.0,2648.9,22.93589266]
[1750104765687,0.0866762,2649.0,2648.9,16.52689266]
[1750104766004,0.0866762,2649.0,2648.9,22.93489266]
[1750104766206,0.0866762,2649.0,2648.9,24.67489266]
[1750104766413,0.0866762,2649.0,2648.9,23.54894053]
[1750104766608,0.21396661,2650.9,2648.9,33.54894053]
[1750104766760,0.52,2652.3,2649.0,0.0866762]
[1750104766961,0.02,2653.9,2653.8,3.76818147]
[1750104767194,0.02,2653.9,2653.8,31.26297006]
[1750104767508,0.02,2653.9,2653.8,37.17393227]
[1750104767682,0.02,2654.9,2654.8,24.57455068]
[1750104767887,0.02,2654.9,2654.8,16.692]
[1750104768057,0.02,2654.9,2654.8,17.58653223]
[1750104768258,0.02,2654.9,2654.8,21.34853406]
[1750104768594,0.02,2655.9,2655.5,14.57226915]
[1750104768894,0.02,2655.9,2655.5,22.61029255]
[1750104769078,0.02,2655.9,2655.5,6.843]
[1750104769285,0.02,2655.9,2655.3,6.856]
[1750104769481,0.02,2655.9,2655.4,6.856]
[1750104769682,0.02,2655.9,2655.3,6.863]
[1750104769883,0.02,2655.9,2655.3,6.861]
[1750104770493,0.02,2655.9,2654.6,10.8065]
[1750104770671,0.02,2655.9,2654.9,3.76651384]
[1750104770872,0.02,2655.9,2655.0,6.862]
[1750104771071,0.55,2655.5,2655.0,6.862]
[1750104771394,0.55,2655.5,2654.3,1.11175143]
[1750104771395,10.0,2655.3,2654.3,3.76746567]
[1750104771598,30.0,2655.1,2654.4,6.867]
[1750104771900,0.55,2655.0,2654.4,6.867]
[1750104772069,0.55,2655.0,2654.1,2.016]
[1750104772394,13.76638548,2655.1,2654.2,6.871]
[1750104772395,0.55,2654.6,2654.2,6.871]
[1750104772695,0.55,2654.4,2653.8,6.87]
[1750104773052,0.55,2654.4,2653.8,10.63814207]
[1750104773696,0.55,2654.4,2653.9,3.76802308]
[1750104773861,0.55,2654.4,2653.8,3.76813843]
[1750104774061,0.55,2654.4,2653.9,3.76792535]
[1750104774292,0.55,2654.4,2653.8,6.858]
[1750104774799,0.55,2654.4,2653.8,10.62614594]
[1750104775293,0.55,2654.4,2653.9,3.76798549]
[1750104775472,0.55,2654.4,2653.8,10.62614594]
[1750104775671,0.55,2654.4,2654.0,3.76788513]
[1750104777697,0.55,2654.4,2654.1,3.76773998]
[1750104778273,3.76667048,2654.9,2654.1,3.76773998]
[1750104778274,0.7541,2655.1,2654.4,3.76732971]
[1750104778488,2.015,2654.8,2654.5,3.7671731]
[1750104778814,2.015,2654.8,2654.6,3.76697826]
[1750104779016,10.55,2654.7,2654.6,3.76697826]
[1750104779170,3.76611149,2655.3,2654.5,3.76717765]
[1750104779520,0.2120556,2655.6,2653.5,1.0985288]
[1750104779521,0.2120556,2655.6,2655.3,3.76600849]
[1750104780324,1.23326116,2655.6,2655.4,3.76588211]
[1750104780668,1.23326116,2655.6,2655.5,3.76576915]
[1750104780870,0.2120556,2655.6,2655.5,3.76576915]
[1750104781928,0.2120556,2655.6,2655.3,3.76605178]
[1750104782418,0.2120556,2655.6,2655.2,6.83]
[1750104782419,0.2120556,2655.6,2655.5,3.76576915]
[1750104784177,0.2120556,2655.6,2655.5,12.41028891]
[1750104784374,0.2120556,2655.6,2655.5,3.76576915]
[1750104784598,0.2120556,2655.6,2655.5,10.58076915]
[1750104784989,0.2120556,2655.6,2655.5,12.5531519]
[1750104786027,0.2120556,2655.6,2655.5,11.45682815]
[1750104786182,0.2120556,2655.6,2655.5,12.93916339]
[1750104786518,0.2120556,2655.6,2655.5,21.45682815]
[1750104786902,0.7966,2656.8,2655.8,3.76534377]
[1750104787212,0.7966,2656.8,2655.8,30.13256509]
[1750104787413,0.02,2656.9,2655.8,32.28780556]
[1750104787617,0.02,2656.9,2655.8,32.65805032]
[1750104787776,0.02,2656.9,2655.8,30.46516729]
[1750104788181,0.02,2656.9,2655.8,32.65805032]
[1750104788617,0.02,2656.9,2655.8,25.85005032]
[1750104788817,0.02,2656.9,2655.8,32.47616729]
[1750104789015,0.02,2656.9,2655.8,34.66905032]
[1750104789320,10.02,2656.9,2655.8,23.65716729]
[1750104789526,0.55,2656.8,2655.8,32.64615616]
[1750104789978,0.55,2656.8,2655.8,25.85315616]
[1750104790199,0.02,2656.9,2655.8,25.85315616]
[1750104790398,0.55,2656.7,2655.8,32.64115616]
[1750104790646,0.55,2656.7,2655.8,30.44516729]
[1750104791053,0.55,2656.5,2655.8,5.01264753]
[1750104791217,0.55,2656.5,2655.8,11.42640277]
[1750104791652,3.76428027,2656.6,2655.8,11.42640277]
[1750104791653,5.13166796,2656.4,2655.8,0.877059]
[1750104791802,1.3671,2656.4,2655.8,0.877059]
[1750104792001,0.55,2656.3,2655.8,10.54834377]
[1750104792251,0.55,2656.3,2655.8,3.76534377]
[1750104792400,0.55,2656.3,2655.8,11.42929428]
[1750104793141,0.02,2656.9,2655.8,11.42929428]
[1750104793338,10.02,2656.9,2655.8,21.88393339]
[1750104793639,3.76399059,2656.8,2655.8,13.63638893]
[1750104793805,3.76415653,2656.7,2655.8,20.42038893]
[1750104794008,4.31399276,2656.8,2655.8,4.99186917]
[1750104794301,0.02,2656.9,2655.8,4.22600773]
[1750104794302,3.76453095,2656.4,2655.8,4.22600773]
[1750104794528,0.9814531,2656.4,2656.3,1.1076176]
[1750104794735,0.55,2656.3,2656.1,8.25568876]
[1750104795004,0.4314531,2656.4,2656.2,1.23231226]
[1750104795215,0.55,2656.3,2656.1,2.21503314]
[1750104795416,0.4314531,2656.4,2656.2,1.23539707]
[1750104795621,0.4314531,2656.4,2656.3,1.23539707]
[1750104796354,0.4314531,2656.4,2656.3,3.10419317]
[1750104796651,0.4314531,2656.4,2656.3,4.00951696]
[1750104796652,5.12549329,2656.4,2656.3,4.00951696]
[1750104796820,5.12549329,2656.4,2656.3,1.5848844]
[1750104797427,5.12549329,2656.4,2656.2,1.48960095]
[1750104797428,3.76463501,2656.3,2656.2,1.48960095]
[1750104797615,3.76463501,2656.3,2656.2,1.69927176]
[1750104797818,5.03008518,2656.3,2656.2,1.69927176]
[1750104798157,5.03008518,2656.3,2656.2,0.20967081]
[1750104798725,4.31477674,2656.2,2656.1,1.48960095]
[1750104798973,4.31477674,2656.2,2656.1,1.69921144]
[1750104799154,4.31477674,2656.2,2656.1,0.20961049]
[1750104799655,4.31477674,2656.2,2656.1,0.20967078]
[1750104800013,4.31477674,2656.2,2656.1,1.3277991]
[1750104800221,5.33036293,2656.2,2656.1,1.3277991]
[1750104800435,5.33036293,2656.2,2656.1,1.32779924]
[1750104802271,5.33036293,2656.2,2656.1,0.20967092]
[1750104802983,0.811,2656.4,2656.1,0.20967092]
[1750104803168,4.57557343,2656.4,2656.2,0.20967092]
[1750104803365,4.57557343,2656.4,2656.0,0.54]
[1750104803366,5.12557343,2656.4,2656.3,0.20982207]
[1750104806002,5.12557343,2656.4,2656.0,1.66057123]
[1750104806003,3.76483224,2656.2,2656.0,1.66057123]
[1750104806184,3.76483224,2656.2,2656.1,0.21013361]
[1750104807198,3.76483224,2656.2,2656.1,1.33070484]
[1750104808198,15.20387987,2656.2,2656.1,0.91485957]
[1750104808361,3.76534377,2655.8,2655.7,1.48960095]
[1750104808790,3.52044387,2655.8,2655.7,1.48960095]
[1750104809257,3.52044387,2655.8,2655.5,2.21503314]
[1750104809258,4.31492147,2656.1,2655.4,1.48960095]
[1750104809458,3.76558526,2655.7,2655.4,1.48960095]
[1750104809797,3.76558526,2655.7,2655.3,1.48960095]
[1750104809798,3.76576915,2655.5,2655.3,1.48960095]
[1750104809987,3.76583549,2655.5,2655.1,5.25591951]
[1750104810191,3.76583549,2655.5,2655.0,12.74276019]
[1750104810373,3.76583549,2655.5,2655.0,2.27930095]
[1750104810574,3.76583549,2655.5,2655.0,12.74076403]
[1750104810802,0.55,2655.7,2655.0,2.27930095]
[1750104810990,3.76600327,2655.4,2655.0,1.48960095]
[1750104811304,3.76610031,2655.3,2655.0,8.18160095]
[1750104811802,3.76597367,2655.4,2655.0,1.48960095]
[1750104812006,3.76616506,2655.3,2655.0,1.48960095]
[1750104812202,0.43153779,2655.6,2654.9,1.48960095]
[1750104812408,3.7660115,2655.4,2655.0,1.48960095]
[1750104812811,3.76614689,2655.3,2655.0,1.48960095]
[1750104813013,3.76633648,2655.1,2655.0,1.48960095]
[1750104813310,0.55,2655.2,2654.6,1.48960095]
[1750104813512,0.55,2655.2,2654.5,1.48960095]
[1750104813513,3.76678753,2654.8,2654.5,1.48960095]
[1750104813683,3.76678753,2654.8,2654.6,1.48960095]
[1750104814027,3.76665451,2654.9,2654.5,1.48960095]
[1750104814710,3.76668769,2654.9,2654.5,1.48960095]
[1750104814898,3.76685553,2654.8,2654.3,5.25705388]
[1750104815100,3.76685553,2654.8,2654.3,1.52727148]
[1750104815317,3.76699028,2654.7,2654.3,1.48960095]
[1750104815827,3.76682809,2654.8,2654.3,5.25707026]
[1750104816332,0.66486952,2655.1,2654.4,10.75331314]
[1750104816529,3.76662021,2654.9,2654.4,14.5205918]
[1750104816908,3.76676864,2654.8,2654.4,10.75331314]
[1750104818129,3.7666778,2654.9,2654.4,14.52061345]
[1750104818950,3.7666778,2654.9,2654.4,10.75331314]
[1750104819346,3.76676837,2654.8,2654.4,10.75331314]
[1750104819846,3.76761359,2654.2,2654.1,0.02]
[1750104822119,4.31761359,2654.2,2654.1,0.02]
[1750104823249,3.76761359,2654.2,2654.1,0.02]
[1750104823454,10.0,2654.6,2654.1,0.02]
[1750104823654,3.76727025,2654.5,2654.1,0.02]
[1750104824109,10.43213901,2654.6,2654.1,3.7877283]
[1750104824514,10.43213901,2654.6,2654.1,0.02]
[1750104824515,3.76721955,2654.5,2654.1,0.02]
[1750104825243,1.2,2654.3,2654.1,0.02]
[1750104825748,3.76721955,2654.5,2654.1,0.02]
[1750104828458,3.7673352,2654.4,2654.1,0.02]
[1750104829229,3.76725689,2654.5,2654.1,0.02]
[1750104830163,1.2,2654.3,2654.1,0.02]
[1750104830765,3.76725484,2654.5,2654.1,0.02]
[1750104831059,3.76725484,2654.5,2654.1,3.78774688]
[1750104831361,4.58914987,2654.7,2654.2,3.76753248]
[1750104831362,0.55,2654.7,2654.2,3.76753248]
[1750104831566,0.55,2654.7,2654.1,4.57409122]
[1750104831567,3.76705826,2654.6,2654.1,4.57409122]
[1750104832529,1.44616952,2655.1,2654.2,0.03767446]
[1750104832843,3.76664015,2654.9,2654.4,3.76723005]
[1750104833677,3.76664015,2654.9,2654.4,3.80489884]
[1750104834087,3.76664015,2654.9,2654.4,3.80491296]
[1750104834595,10.0,2655.6,2654.8,0.8148]
[1750104834746,3.76601087,2655.4,2654.9,3.7666121]
[1750104834946,3.76591097,2655.4,2654.8,4.58147287]
[1750104835258,3.76591097,2655.4,2654.9,3.7665801]
[1750104835809,0.8129,2655.8,2654.8,0.8148]
[1750104835971,10.75331314,2656.5,2655.0,10.75331314]
[1750104835972,3.76529153,2655.9,2655.0,10.75331314]
[1750104836172,3.76529153,2655.9,2655.3,3.76597816]
[1750104836500,3.76529153,2655.9,2655.3,3.80363475]
[1750104836654,3.76529153,2655.9,2655.4,3.76588575]
[1750104836854,0.8129,2656.1,2655.3,0.03765659]
[1750104836855,0.8129,2656.1,2655.6,3.76554084]
[1750104837089,1.873,2656.2,2655.5,0.03765659]
[1750104837292,1.873,2656.2,2655.4,0.7728]
[1750104837293,1.873,2656.2,2655.7,3.76548555]
[1750104837600,1.873,2656.2,2655.8,3.76533892]
[1750104838009,14.51542699,2656.5,2656.0,3.76505341]
[1750104838194,3.76452934,2656.4,2655.9,3.76515578]
[1750104839155,6.34338459,2656.5,2656.0,3.76493817]
[1750104839357,4.51541919,2656.5,2656.0,3.76493817]
[1750104839560,4.51541919,2656.5,2655.8,3.76525912]
[1750104839561,3.76450951,2656.4,2655.9,3.76509994]
[1750104840175,3.76463529,2656.3,2655.9,3.76509994]
[1750104840735,0.55,2656.3,2655.5,3.965]
[1750104841029,3.76504503,2656.1,2655.6,3.7656055]
[1750104841595,3.7650719,2656.0,2655.5,3.76571916]
[1750104841795,0.75298486,2656.0,2655.4,0.7728]
[1750104841990,4.26526414,2655.9,2655.4,3.7659106]
[1750104842511,0.5,2655.9,2655.5,3.76575922]
[1750104842683,0.7668,2656.7,2655.8,0.7898]
[1750104842887,0.55,2656.4,2655.9,3.76507267]
[1750104843222,4.31452335,2656.4,2655.9,3.76507267]
[1750104843819,3.76426594,2656.6,2655.9,3.76516452]
[1750104843820,0.55,2656.5,2655.9,3.76516452]
[1750104843996,6.75017382,2656.5,2656.0,3.76494751]
[1750104844610,3.76449887,2656.4,2656.0,3.76494751]
[1750104844801,3.76449887,2656.4,2655.9,3.76512281]
[1750104845238,3.76449887,2656.4,2655.8,4.55511551]
[1750104845239,4.31441838,2656.5,2656.0,3.76502725]
[1750104845399,3.76449671,2656.4,2656.0,3.76502725]
[1750104845830,3.76449671,2656.4,2655.9,3.76512479]
[1750104846211,4.31442098,2656.5,2656.0,3.76503653]
[1750104846412,4.31426982,2656.6,2656.1,3.76491707]
[1750104846861,3.7644972,2656.4,2655.9,3.76512855]
[1750104848134,3.7644972,2656.4,2655.9,3.76511221]
[1750104848135,3.76458095,2656.4,2655.9,3.76511221]
[1750104848917,3.76464136,2656.3,2655.9,3.76511221]
[1750104849325,3.76455188,2656.4,2655.9,3.76511221]
[1750104852966,3.76455188,2656.4,2655.8,4.55511329]
[1750104853138,3.76455188,2656.4,2655.9,3.765202]
[1750104853823,3.7645555,2656.4,2655.9,3.76514268]
[1750104854023,3.7645555,2656.4,2656.0,3.7650511]
[1750104854760,5.23612568,2656.6,2656.0,3.7650511]
[1750104854761,3.76443403,2656.5,2656.0,3.7650511]
[1750104854966,1.47185446,2656.6,2655.8,0.7898]
[1750104855174,0.7668,2656.7,2656.1,3.76477967]
[1750104855415,4.53092607,2656.7,2655.9,0.03764971]
[1750104855579,0.7668,2656.7,2656.3,3.76461504]
[1750104855727,0.55,2656.8,2656.4,3.76441973]
[1750104855927,0.02,2656.9,2656.6,3.76412615]
[1750104856128,0.02,2656.9,2656.8,3.76392652]
[1750104860669,0.02,2656.9,2656.7,3.76400586]
[1750104861047,0.02,2656.9,2656.8,3.76392652]
[1750104861249,0.02,2656.9,2656.5,3.76430034]
[1750104861568,0.02,2656.9,2656.8,3.76392652]
[1750104862670,0.02,2656.9,2656.7,3.76399042]
[1750104863433,0.02,2656.9,2656.7,3.76396503]
[1750104863865,0.02,2656.9,2656.8,3.76392652]
[1750104864558,0.02,2656.9,2656.8,7.67292652]
[1750104868657,0.02,2656.9,2656.8,7.66592652]
[1750104869216,0.02,2656.9,2656.5,4.67]
[1750104869217,3.78379832,2656.9,2656.5,4.67]
[1750104869490,3.78379832,2656.9,2656.7,3.9]
[1750104869892,3.78379832,2656.9,2656.5,3.901]
[1750104870398,3.78379832,2656.9,2656.4,4.58191015]
[1750104870698,3.76441642,2656.5,2656.0,5.68431953]
[1750104870860,3.76441642,2656.5,2656.0,4.56059929]
[1750104871193,3.76441642,2656.5,2656.1,3.899]
[1750104871392,3.76457235,2656.4,2656.2,3.899]
[1750104871590,3.76457235,2656.4,2655.8,1.808]
[1750104871591,3.76463501,2656.3,2655.8,6.69698176]
[1750104871755,3.76455757,2656.4,2655.9,7.66317123]
[1750104872453,3.76455426,2656.4,2655.9,7.66317123]
[1750104872882,3.76435185,2656.5,2655.9,7.66317123]
[1750104873096,3.76435185,2656.5,2655.8,1.808]
[1750104873097,0.7859,2656.4,2655.8,1.808]
[1750104873295,3.76465005,2656.3,2656.0,3.898]
[1750104873498,4.26465005,2656.3,2656.0,3.898]
[1750104873854,3.76484138,2656.2,2655.8,1.808]
[1750104874158,0.5,2656.3,2655.7,0.7779]
[1750104874399,3.76484474,2656.2,2655.7,3.76543953]
[1750104874692,3.76492647,2656.1,2655.8,3.892]
[1750104875091,3.76484946,2656.2,2655.9,3.891]
[1750104875591,3.76494826,2656.1,2655.6,3.76555791]
[1750104875770,3.76503063,2656.1,2655.7,3.891]
[1750104876376,3.76503063,2656.1,2655.7,7.65647797]
[1750104876885,3.7650618,2656.0,2655.7,3.891]
[1750104877258,3.76498413,2656.1,2655.7,3.891]
[1750104877677,3.76483777,2656.2,2655.7,7.65647592]
[1750104878162,3.76498265,2656.1,2655.8,3.884]
[1750104878372,3.76499865,2656.1,2655.6,3.76561595]
[1750104878677,3.76499865,2656.1,2655.8,3.884]
[1750104879193,3.76507176,2656.0,2655.8,3.884]
[1750104879396,3.76463501,2656.3,2655.8,3.884]
[1750104879561,3.76495615,2656.1,2655.8,3.884]
[1750104879896,0.55,2656.3,2655.8,3.884]
[1750104880056,3.76496298,2656.1,2655.5,4.88943593]
[1750104880259,3.76520964,2655.9,2655.5,6.69743359]
[1750104880511,3.76520964,2655.9,2655.6,3.882]
[1750104881101,3.76520964,2655.9,2655.5,1.808]
[1750104881303,0.55,2656.3,2655.6,3.882]
[1750104881304,3.76513778,2656.0,2655.6,3.882]
[1750104881473,3.76499901,2656.1,2655.6,7.64760987]
[1750104881881,3.76499901,2656.1,2655.4,1.89632024]
[1750104881882,0.55,2656.3,2655.4,1.89632024]
[1750104882069,0.55,2656.0,2655.2,6.69785014]
[1750104882401,4.52241871,2655.8,2655.3,7.6480459]
[1750104882576,3.76550264,2655.7,2655.3,3.882]
[1750104882901,4.52237468,2655.8,2655.2,3.882]
[1750104882902,3.76569721,2655.6,2655.2,3.882]
[1750104883075,3.76569721,2655.6,2655.2,7.64815743]
[1750104883278,3.76554865,2655.7,2655.3,3.76603594]
[1750104883707,3.76554865,2655.7,2655.2,7.64813058]
[1750104885006,4.52240424,2655.8,2655.2,7.64813058]
[1750104885171,3.76557252,2655.7,2655.2,7.64813058]
[1750104885370,3.76557252,2655.7,2655.3,3.76604397]
[1750104885901,3.76557252,2655.7,2655.2,7.64811894]
[1750104886611,3.76565049,2655.6,2655.2,7.64811894]
[1750104886808,3.76565049,2655.6,2655.2,3.76611894]
[1750104887007,0.757,2655.8,2655.2,3.882]
[1750104887311,3.76561003,2655.7,2655.2,7.6481945]
[1750104888072,3.76563695,2655.6,2655.2,7.6481945]
[1750104888508,3.76556957,2655.7,2655.2,3.882]
[1750104888811,3.76556957,2655.7,2655.2,7.64807521]
[1750104889214,3.76556957,2655.7,2655.3,3.76603898]
[1750104889922,3.76556957,2655.7,2655.2,7.64812395]
[1750104890427,3.76556957,2655.7,2655.3,3.76605105]
[1750104890803,3.76562881,2655.6,2655.1,0.7617]
[1750104891000,0.757,2655.8,2655.2,3.882]
[1750104891001,3.76584458,2655.5,2655.2,3.882]
[1750104891204,3.76568012,2655.6,2655.2,3.882]
[1750104891418,3.76568012,2655.6,2655.2,7.64817358]
[1750104892291,3.76568012,2655.6,2655.2,3.76617358]
[1750104892626,3.76556708,2655.7,2655.2,7.64817358]
[1750104892997,3.7656547,2655.6,2655.2,3.882]
[1750104893198,3.76575266,2655.6,2655.2,3.882]
[1750104893516,3.76577356,2655.5,2655.2,3.882]
[1750104894028,3.76578786,2655.5,2654.8,1.93372024]
[1750104894202,3.76611778,2655.3,2654.9,3.882]
[1750104894401,3.76622915,2655.2,2654.9,3.882]
[1750104894604,3.76604472,2655.4,2654.9,7.64861986]
[1750104895621,3.76597619,2655.4,2654.9,7.64861986]
[1750104896915,3.76597619,2655.4,2654.9,3.76661986]
[1750104897141,3.76597619,2655.4,2654.9,7.64861986]
[1750104899442,3.76591706,2655.4,2655.0,3.76638203]
[1750104900642,4.31583461,2655.5,2655.0,3.76638203]
[1750104901231,4.31583461,2655.5,2654.6,7.5855459]
[1750104901232,3.76676209,2654.8,2654.2,5.66242661]
[1750104901435,7.5855459,2655.1,2654.2,5.66242661]
[1750104901436,3.7670604,2654.6,2654.2,1.89482024]
[1750104901642,3.76741882,2654.4,2654.1,0.02]
[1750104901806,3.76753701,2654.3,2654.1,0.02]
[1750104902137,3.76761359,2654.2,2654.1,0.02]
[1750104905503,15.10793614,2654.2,2654.1,0.02]
[1750104906040,15.87173614,2654.2,2654.1,0.02]
[1750104906413,45.87173614,2654.2,2654.1,0.02]
[1750104907759,15.87173614,2654.2,2654.1,0.02]
[1750104907967,10.0,2654.2,2654.1,0.02]
[1750104908245,3.76729101,2654.5,2654.1,0.02]
[1750104908752,3.7673523,2654.4,2654.1,0.02]
[1750104909104,4.31734121,2654.4,2654.1,0.02]
[1750104909338,0.55,2654.4,2654.1,0.02]
[1750104910203,3.76711536,2654.6,2654.1,0.02]
[1750104910204,1.784,2654.8,2654.1,3.78768262]
[1750104910400,10.0,2654.6,2654.2,3.76752479]
[1750104910840,10.0,2654.7,2654.2,3.76752479]
[1750104911220,13.76692584,2654.7,2654.2,3.76752479]
[1750104911621,3.76705351,2654.6,2654.1,3.78771808]
[1750104912843,3.767279,2654.5,2654.1,0.02]
[1750104915361,3.76744596,2654.4,2654.1,0.02]
[1750104915522,11.35264031,2654.6,2654.1,0.02]
[1750104915728,0.55,2654.5,2654.1,0.02]
[1750104916059,3.7673655,2654.4,2654.1,0.02]
[1750104916556,3.76733485,2654.4,2654.1,0.02]
[1750104916917,7.5855459,2654.4,2654.1,0.02]
[1750104917425,4.31736524,2654.4,2654.1,0.02]
[1750104917648,3.76761359,2654.2,2654.1,0.02]
[1750104918667,11.90315949,2654.2,2654.1,0.02]
[1750104918863,21.90315949,2654.2,2654.1,0.02]
[1750104919030,24.55181477,2654.2,2654.1,0.02]
[1750104919359,16.96626887,2654.2,2654.1,0.02]
[1750104919861,24.55181477,2654.2,2654.1,0.02]
[1750104920247,28.43281477,2654.2,2654.1,0.02]
[1750104920567,30.21681477,2654.2,2654.1,0.02]
[1750104920762,60.21681477,2654.2,2654.1,0.02]
[1750104923335,56.33581477,2654.2,2654.1,0.02]
[1750104923570,13.76761359,2654.2,2654.1,0.02]
[1750104924068,10.0,2654.2,2654.1,0.02]
[1750104924271,0.8082,2654.7,2654.1,0.02]
[1750104924437,3.88,2654.6,2654.1,0.02]
[1750104924772,3.76719825,2654.5,2654.1,0.02]
[1750104924974,4.31733508,2654.4,2654.1,0.02]
[1750104925558,4.31726387,2654.5,2654.1,0.02]
[1750104925854,3.7673777,2654.4,2654.1,0.02]
[1750104926229,0.55,2654.5,2654.1,0.02]
[1750104926433,3.76761359,2654.2,2654.1,0.02]
[1750104927037,4.31761359,2654.2,2654.1,0.02]
[1750104927237,18.19661359,2654.2,2654.1,0.02]
[1750104929277,49.00491359,2654.2,2654.1,0.02]
[1750104929456,52.81996013,2654.2,2654.1,0.02]
[1750104930356,54.59896013,2654.2,2654.1,0.02]
[1750104932081,54.59896013,2654.2,2653.1,0.02]
[1750104932082,4.31903361,2653.2,2653.1,0.02]
[1750104932645,14.31903361,2653.2,2653.1,0.02]
[1750104932888,21.90457951,2653.2,2653.1,0.02]
[1750104935388,10.0,2653.2,2653.1,0.02]
[1750104935790,13.76903361,2653.2,2653.1,0.02]
[1750104936162,10.0,2653.2,2653.1,0.02]
[1750104936689,13.76903361,2653.2,2653.1,0.02]
[1750104952497,3.76872408,2653.5,2653.1,0.02]
[1750104952734,17.643694,2653.5,2653.1,0.02]
[1750104952898,3.76887643,2653.4,2653.1,0.02]
[1750104953840,3.76889292,2653.3,2653.1,0.02]
[1750104955797,3.76875187,2653.4,2653.1,0.02]
[1750104955998,3.76903361,2653.2,2653.1,0.02]
[1750104958646,10.0,2653.5,2653.1,0.02]
[1750104958798,3.76889799,2653.3,2653.1,0.02]
[1750104959145,3.76903361,2653.2,2653.1,0.02]
[1750104961026,15.82492677,2653.2,2653.1,0.02]
[1750104965708,23.41047267,2653.2,2653.1,0.02]
[1750104966135,15.82492677,2653.2,2653.1,0.02]
[1750104966730,19.69592677,2653.2,2653.1,0.02]
[1750104967802,13.76903361,2653.2,2653.1,0.02]
[1750104968002,17.63903361,2653.2,2653.1,0.02]
[1750104971241,25.77457951,2653.2,2653.1,0.02]
[1750104972923,10.0,2653.2,2653.1,0.02]
[1750104973128,10.0,2653.2,2653.1,0.7979]
[1750104973744,13.76903361,2653.2,2653.1,0.02]
[1750104974447,15.90962629,2653.2,2653.1,0.02]
[1750104974745,25.76017219,2653.2,2653.1,0.02]
[1750104974931,23.49517219,2653.2,2653.1,0.02]
[1750104975354,27.91317219,2653.2,2653.1,0.02]
[1750104976767,29.68517219,2653.2,2653.1,0.02]
[1750104978386,37.27071809,2653.2,2653.1,0.02]
[1750104978586,68.09951809,2653.2,2653.1,0.02]
[1750104978887,60.51397219,2653.2,2653.1,0.02]
[1750104979093,68.09951809,2653.2,2653.1,0.02]
[1750104979511,70.36451809,2653.2,2653.1,0.02]
[1750104980189,54.87397219,2653.2,2653.1,0.02]
[1750104980390,54.32397219,2653.2,2653.1,0.02]
[1750104980603,59.96197219,2653.2,2653.1,0.02]
[1750104980783,60.51197219,2653.2,2653.1,0.02]
[1750104981562,47.28842629,2653.2,2653.1,0.02]
[1750104981757,3.7690096,2653.3,2653.1,0.02]
[1750104982011,3.7686701,2653.5,2653.1,0.8227]